fUSD/lending_fUSD_20241227
["ID","MTS","AMOUNT","RATE_DAILY","PERIOD"]
[346867260,1735335033025,-500.0,0.00010465,2]
[346867262,1735335033035,-500.0,0.00010465,2]
[346867264,1735335033045,-500.0,0.00010465,2]
[346867266,1735335033055,-501.49,0.00010465,2]
[346867268,1735335033065,-583.11361027,0.00010465,2]
[346867270,1735335033075,-500.0,0.00010465,2]
[346867272,1735335033084,-593.91,0.00010465,2]
[346867274,1735335033094,-500.0,0.00010465,2]
[346867276,1735335033104,-933.68,0.00010465,2]
[346867277,1735335033119,-1294.48,0.00010465,2]
[346867280,1735335033129,-500.0,0.00010465,2]
[346867281,1735335033140,-614.14,0.00010465,2]
[346867283,1735335033150,-566.55,0.00010465,2]
[346867285,1735335033160,-500.0,0.00010465,2]
[346867287,1735335033170,-500.0,0.00010465,2]
[346867289,1735335033180,-1117.62,0.00010465,2]
[346867291,1735335033189,-500.0,0.00010465,2]
[346867293,1735335033199,-500.0,0.00010465,2]
[346867295,1735335033209,-500.0,0.00010465,2]
[346867297,1735335033218,-500.0,0.00010465,2]
[346867299,1735335033228,-500.0,0.00010465,2]
[346867301,1735335033238,-751.56,0.00010465,2]
[346867303,1735335033247,-500.0,0.00010465,2]
[346867305,1735335033256,-500.0,0.00010465,2]
[346867307,1735335033265,-531.43,0.00010465,2]
[346867309,1735335033275,-842.22,0.00010465,2]
[346867311,1735335033284,-500.0,0.00010465,2]
[346867313,1735335033295,-500.0,0.00010465,2]
[346867315,1735335033305,-669.23,0.00010465,2]
[346867317,1735335033314,-500.0,0.00010465,2]
[346867319,1735335033324,-500.0,0.00010465,2]
[346867321,1735335033333,-500.0,0.00010465,2]
[346867323,1735335033343,-811.49,0.00010465,2]
[346867325,1735335033352,-500.0,0.00010465,2]
[346867327,1735335033362,-813.68,0.00010465,2]
[346867329,1735335033372,-830.06,0.00010465,2]
[346867330,1735335033382,-500.0,0.00010465,2]
[346867332,1735335033393,-655.61,0.00010465,2]
[346867335,1735335033403,-524.43,0.00010465,2]
[346867337,1735335033414,-502.22983314,0.00010465,2]
[346867339,1735335033424,-500.0,0.00010465,2]
[346867340,1735335033434,-500.0,0.00010465,2]
[346867342,1735335033443,-1141.92,0.00010465,2]
[346867344,1735335033453,-540.09,0.00010465,2]
[346867346,1735335033463,-925.24,0.00010465,2]
[346867348,1735335033472,-1075.53,0.00010465,2]
[346867350,1735335033482,-520.37,0.00010465,2]
[346867352,1735335033491,-500.0,0.00010465,2]
[346867354,1735335033502,-500.0,0.00010465,2]
[346867356,1735335033512,-561.2,0.00010465,2]
[346867358,1735335033521,-962.77,0.00010465,2]
[346867360,1735335033531,-500.0,0.00010465,2]
[346867362,1735335033540,-500.0,0.00010465,2]
[346867364,1735335033550,-710.19,0.00010465,2]
[346867366,1735335033559,-547.52,0.00010465,2]
[346867368,1735335033569,-500.0,0.00010465,2]
[346867370,1735335033579,-500.0,0.00010465,2]
[346867372,1735335033589,-500.0,0.00010465,2]
[346867374,1735335033599,-500.0,0.00010465,2]
[346867376,1735335033609,-574.15,0.00010465,2]
[346867378,1735335033621,-596.61,0.00010465,2]
[346867380,1735335033630,-762.67,0.00010465,2]
[346867382,1735335033640,-534.31,0.00010465,2]
[346867384,1735335033650,-722.68,0.00010465,2]
[346867386,1735335033662,-1138.39,0.00010465,2]
[346867388,1735335033672,-1028.39,0.00010465,2]
[346867389,1735335033682,-922.33,0.00010465,2]
[346867391,1735335033692,-554.29,0.00010465,2]
[346867393,1735335033702,-517.38,0.00010465,2]
[346867395,1735335033712,-1147.95,0.00010465,2]
[346867397,1735335033721,-1474.25,0.00010465,2]
[346867399,1735335033730,-501.47,0.00010465,2]
[346867401,1735335033740,-500.0,0.00010465,2]
[346867403,1735335033753,-500.0,0.00010465,2]
[346867405,1735335033762,-500.0,0.00010465,2]
[346867407,1735335033771,-500.0,0.00010465,2]
[346867409,1735335033781,-500.0,0.00010465,2]
[346867411,1735335033791,-500.0,0.00010465,2]
[346867413,1735335033800,-561.23,0.00010465,2]
[346867415,1735335033810,-1354.44,0.00010465,2]
[346867417,1735335033819,-555.3,0.00010465,2]
[346867419,1735335033830,-965.42,0.00010465,2]
[346867421,1735335033840,-500.0,0.00010465,2]
[346867423,1735335033850,-660.21,0.00010465,2]
[346867424,1735335033860,-500.0,0.00010465,2]
[346867426,1735335033871,-2510.32,0.00010465,2]
[346867428,1735335033881,-500.0,0.00010465,2]
[346867430,1735335033891,-665.24,0.00010465,2]
[346867432,1735335033901,-1962.65,0.00010465,2]
[346867434,1735335033911,-898.21,0.00010465,2]
[346867436,1735335033921,-626.95,0.00010465,2]
[346867438,1735335033931,-1135.99,0.00010465,2]
[346867440,1735335033941,-1278.81,0.00010465,2]
[346867442,1735335033951,-1076.99,0.00010465,2]
[346867444,1735335033960,-1959.01,0.00010465,2]
[346867447,1735335033971,-722.38,0.00010465,2]
[346867449,1735335033982,-845.25,0.00010465,2]
[346867451,1735335033992,-13275.46,0.00010465,2]
[346867452,1735335034002,-500.0,0.00010465,2]
[346867454,1735335034012,-500.0,0.00010465,2]
[346867456,1735335034022,-1227.81,0.00010465,2]
[346867458,1735335034032,-500.0,0.00010465,2]
[346867460,1735335034042,-1491.52,0.00010465,2]
[346867462,1735335034052,-547.89039996,0.00010465,2]
[346867464,1735335034062,-1212.23,0.00010465,2]
[346867466,1735335034071,-668.6,0.00010465,2]
[346867468,1735335034081,-1079.06,0.00010465,2]
[346867470,1735335034091,-513.99,0.00010465,2]
[346867472,1735335034101,-500.0,0.00010465,2]
[346867474,1735335034111,-1202.7,0.00010465,2]
[346867476,1735335034122,-2128.96,0.00010465,2]
[346867478,1735335034131,-500.0,0.00010465,2]
[346867480,1735335034141,-500.0,0.00010465,2]
[346867482,1735335034151,-500.0,0.00010465,2]
[346867484,1735335034161,-500.0,0.00010465,2]
[346867486,1735335034170,-810.95,0.00010465,2]
[346867488,1735335034180,-1012.49,0.00010465,2]
[346867490,1735335034190,-582.78,0.00010465,2]
[346867492,1735335034199,-2726.56,0.00010465,2]
[346867494,1735335034210,-6516.46,0.00010465,2]
[346867496,1735335034219,-2540.8,0.00010465,2]
[346867498,1735335034229,-1006.4,0.00010465,2]
[346867500,1735335034238,-500.0,0.00010465,2]
[346867502,1735335034248,-500.0,0.00010465,2]
[346867504,1735335034257,-685.69,0.00010465,2]
[346867506,1735335034266,-500.0,0.00010465,2]
[346867508,1735335034275,-553.58,0.00010465,2]
[346867510,1735335034285,-722.52,0.00010465,2]
[346867512,1735335034294,-1979.24,0.00010465,2]
[346867514,1735335034303,-500.0,0.00010465,2]
[346867516,1735335034313,-500.0,0.00010465,2]
[346867518,1735335034322,-1463.67,0.00010465,2]
[346867520,1735335034331,-515.75,0.00010465,2]
[346867522,1735335034341,-1142.96,0.00010465,2]
[346867524,1735335034350,-4784.24,0.00010465,2]
[346867526,1735335034359,-1277.79,0.00010465,2]
[346867528,1735335034370,-500.0,0.00010465,2]
[346867529,1735335034379,-8547.03,0.00010465,2]
[346867531,1735335034389,-2428.42,0.00010465,2]
[346867533,1735335034399,-1276.17,0.00010465,2]
[346867535,1735335034408,-622.31,0.00010465,2]
[346867537,1735335034417,-1110.17,0.00010465,2]
[346867539,1735335034427,-1039.01,0.00010465,2]
[346867541,1735335034437,-500.0,0.00010465,2]
[346867543,1735335034446,-500.0,0.00010465,2]
[346867545,1735335034456,-500.0,0.00010465,2]
[346867547,1735335034465,-11478.37,0.00010465,2]
[346867549,1735335034475,-1042.69,0.00010465,2]
[346867551,1735335034484,-779.06,0.00010465,2]
[346867553,1735335034494,-1138.15,0.00010465,2]
[346867555,1735335034503,-604.56,0.00010465,2]
[346867557,1735335034514,-579.61608306,0.00010465,2]
[346867559,1735335034523,-743.74,0.00010465,2]
[346867561,1735335034533,-500.0,0.00010465,2]
[346867564,1735335034542,-500.0,0.00010465,2]
[346867565,1735335034552,-1942.4,0.00010465,2]
[346867567,1735335034562,-539.67,0.00010465,2]
[346867570,1735335034571,-6078.85,0.00010465,2]
[346867571,1735335034580,-605.36,0.00010465,2]
[346867574,1735335034590,-500.0,0.00010466,2]
[346867575,1735335034600,-500.0,0.00010466,2]
[346867577,1735335034610,-500.0,0.00010466,2]
[346867579,1735335034623,-500.0,0.00010466,2]
[346867582,1735335034633,-500.0,0.00010466,2]
[346867584,1735335034642,-500.0,0.00010466,2]
[346867586,1735335034652,-562.07,0.00010466,2]
[346867588,1735335034662,-743.51,0.00010466,2]
[346867590,1735335034672,-500.0,0.00010466,2]
[346867591,1735335034681,-500.0,0.00010466,2]
[346867592,1735335034691,-500.0,0.00010466,2]
[346867593,1735335034700,-725.01,0.00010466,2]
[346867594,1735335034708,-800.76,0.00010466,2]
[346867595,1735335034718,-500.0,0.00010466,2]
[346867596,1735335034727,-500.0,0.00010466,2]
[346867597,1735335034735,-620.36,0.00010466,2]
[346867598,1735335034745,-514.94,0.00010466,2]
[346867599,1735335034759,-500.0,0.00010466,2]
[346867600,1735335034768,-500.0,0.00010466,2]
[346867601,1735335034777,-500.0,0.00010466,2]
[346867603,1735335034786,-500.0,0.00010466,2]
[346867605,1735335034798,-500.0,0.00010466,2]
[346867607,1735335034807,-500.0,0.00010466,2]
[346867608,1735335034817,-500.0,0.00010466,2]
[346867610,1735335034827,-500.0,0.00010466,2]
[346867612,1735335034837,-500.0,0.00010466,2]
[346867615,1735335034847,-500.0,0.00010466,2]
[346867617,1735335034856,-500.0,0.00010466,2]
[346867618,1735335034866,-500.0,0.00010466,2]
[346867621,1735335034876,-500.0,0.00010466,2]
[346867622,1735335034886,-500.0,0.00010466,2]
[346867625,1735335034895,-500.0,0.00010466,2]
[346867626,1735335034905,-500.0,0.00010466,2]
[346867629,1735335034915,-350.60350172,0.00010466,2]
[346867631,1735335034926,-500.0,0.00010466,2]
[346867633,1735335034935,-500.0,0.00010466,2]
[346867635,1735335034945,-500.0,0.00010466,2]
[346867637,1735335034955,-612.45,0.00010466,2]
[346867639,1735335034964,-500.0,0.00010466,2]
[346867641,1735335034973,-500.0,0.00010466,2]
[346867643,1735335034983,-500.0,0.00010466,2]
[346867644,1735335034992,-500.0,0.00010466,2]
[346867646,1735335035002,-500.0,0.00010466,2]
[346867647,1735335035011,-500.0,0.00010466,2]
[346867649,1735335035021,-500.0,0.00010466,2]
[346867651,1735335035030,-500.0,0.00010466,2]
[346867653,1735335035040,-500.0,0.00010466,2]
[346867655,1735335035049,-500.0,0.00010466,2]
[346867657,1735335035059,-500.0,0.00010466,2]
[346867659,1735335035068,-500.0,0.00010466,2]
[346867661,1735335035077,-500.0,0.00010466,2]
[346867663,1735335035087,-500.0,0.00010466,2]
[346867665,1735335035097,-500.0,0.00010466,2]
[346867667,1735335035106,-679.15,0.00010466,2]
[346867669,1735335035115,-593.59,0.00010466,2]
[346867671,1735335035124,-579.52,0.00010466,2]
[346867672,1735335035133,-500.0,0.00010466,2]
[346867674,1735335035143,-318.27383962,0.00010466,2]
[346867676,1735335035153,-500.0,0.00010466,2]
[346867678,1735335035163,-500.0,0.00010466,2]
[346867680,1735335035172,-500.0,0.00010466,2]
[346867682,1735335035181,-336.25407897,0.00010466,2]
[346867684,1735335035191,-585.31,0.00010466,2]
[346867686,1735335035200,-360.77189647,0.00010466,2]
[346867688,1735335035209,-450.22319133,0.00010466,2]
[346867690,1735335035218,-500.0,0.00010466,2]
[346867692,1735335035228,-500.0,0.00010466,2]
[346867694,1735335035237,-554.32,0.00010466,2]
[346867696,1735335035246,-580.64,0.00010466,2]
[346867697,1735335035255,-500.0,0.00010466,2]
[346867698,1735335035264,-614.22,0.00010466,2]
[346867699,1735335035274,-500.0,0.00010466,2]
[346867700,1735335035283,-500.0,0.00010466,2]
[346867702,1735335035292,-500.0,0.00010466,2]
[346867704,1735335035301,-500.0,0.00010466,2]
[346867706,1735335035310,-651.61,0.00010466,2]
[346867708,1735335035319,-500.0,0.00010466,2]
[346867710,1735335035329,-659.03,0.00010466,2]
[346867712,1735335035338,-607.59,0.00010466,2]
[346867714,1735335035348,-500.0,0.00010466,2]
[346867716,1735335035357,-500.0,0.00010466,2]
[346867717,1735335035367,-500.0,0.00010466,2]
[346867718,1735335035376,-654.76,0.00010466,2]
[346867719,1735335035385,-982.64,0.00010466,2]
[346867720,1735335035395,-521.75,0.00010466,2]
[346867721,1735335035404,-553.45,0.00010466,2]
[346867722,1735335035415,-823.85,0.00010466,2]
[346867723,1735335035424,-508.32,0.00010466,2]
[346867724,1735335035433,-684.32,0.00010466,2]
[346867725,1735335035442,-500.0,0.00010466,2]
[346867726,1735335035451,-500.0,0.00010466,2]
[346867727,1735335035461,-810.29,0.00010466,2]
[346867728,1735335035470,-858.36,0.00010466,2]
[346867729,1735335035480,-500.0,0.00010466,2]
[346867730,1735335035489,-500.0,0.00010466,2]
[346867731,1735335035498,-500.0,0.00010466,2]
[346867732,1735335035507,-500.0,0.00010466,2]
[346867733,1735335035517,-683.28,0.00010466,2]
[346867734,1735335035527,-325.44461047,0.00010466,2]
[346867735,1735335035536,-374.58058521,0.00010466,2]
[346867736,1735335035580,-125.41941479,0.00010466,2]
[346867737,1735335035590,-500.0,0.00010466,2]
[346867738,1735335035600,-500.0,0.00010466,2]
[346867739,1735335035609,-500.0,0.00010466,2]
[346867740,1735335035621,-556.58,0.00010466,2]
[346867741,1735335035630,-500.0,0.00010466,2]
[346867742,1735335035640,-1087.99,0.00010466,2]
[346867743,1735335035649,-500.0,0.00010466,2]
[346867744,1735335035659,-500.0,0.00010466,2]
[346867745,1735335035669,-571.04,0.00010466,2]
[346867746,1735335035679,-500.0,0.00010466,2]
[346867747,1735335035689,-500.0,0.00010466,2]
[346867748,1735335035699,-500.0,0.00010466,2]
[346867749,1735335035708,-794.06,0.00010466,2]
[346867750,1735335035718,-626.44,0.00010466,2]
[346867751,1735335035728,-1229.67,0.00010466,2]
[346867752,1735335035737,-500.0,0.00010466,2]
[346867753,1735335035749,-500.0,0.00010466,2]
[346867754,1735335035760,-771.51,0.00010466,2]
[346867755,1735335035769,-820.3,0.00010466,2]
[346867756,1735335035778,-330.19735669,0.00010466,2]
[346867757,1735335035789,-858.09,0.00010466,2]
[346867758,1735335035798,-500.0,0.00010466,2]
[346867759,1735335035807,-500.0,0.00010466,2]
[346867760,1735335035816,-885.1,0.00010466,2]
[346867761,1735335035827,-500.0,0.00010466,2]
[346867762,1735335035836,-516.99828635,0.00010466,2]
[346867763,1735335035846,-500.0,0.00010466,2]
[346867764,1735335035855,-912.53,0.00010466,2]
[346867765,1735335035865,-500.0,0.00010466,2]
[346867766,1735335035875,-1182.25,0.00010466,2]
[346867767,1735335035884,-500.0,0.00010466,2]
[346867768,1735335035893,-500.0,0.00010466,2]
[346867769,1735335035903,-869.5,0.00010466,2]
[346867770,1735335035913,-500.0,0.00010466,2]
[346867771,1735335035923,-500.0,0.00010466,2]
[346867772,1735335035933,-500.0,0.00010466,2]
[346867773,1735335035943,-500.0,0.00010466,2]
[346867774,1735335035952,-680.79,0.00010466,2]
[346867775,1735335035962,-928.47,0.00010466,2]
[346867776,1735335035971,-871.5,0.00010466,2]
[346867777,1735335035981,-577.59,0.00010466,2]
[346867778,1735335035991,-553.95,0.00010466,2]
[346867779,1735335036000,-738.83,0.00010466,2]
[346867780,1735335036010,-500.0,0.00010466,2]
[346867781,1735335036020,-831.16,0.00010466,2]
[346867782,1735335036029,-500.0,0.00010466,2]
[346867783,1735335036038,-500.0,0.00010466,2]
[346867784,1735335036048,-500.0,0.00010466,2]
[346867785,1735335036058,-1106.67,0.00010466,2]
[346867786,1735335036277,-738.83,0.00010466,2]
[346867787,1735335036288,-500.0,0.00010466,2]
[346867788,1735335036298,-621.7597922,0.00010466,2]
[346867789,1735335036308,-1421.15,0.00010466,2]
[346867790,1735335036317,-500.0,0.00010466,2]
[346867791,1735335036327,-681.17,0.00010466,2]
[346867792,1735335036338,-500.0,0.00010466,2]
[346867793,1735335036348,-500.0,0.00010466,2]
[346867794,1735335036357,-1711.95,0.00010466,2]
[346867795,1735335036368,-500.0,0.00010466,2]
[346867796,1735335036378,-536.6,0.00010466,2]
[346867797,1735335036388,-664.52,0.00010466,2]
[346867798,1735335036397,-500.0,0.00010466,2]
[346867799,1735335036407,-500.0,0.00010466,2]
[346867800,1735335036417,-966.82,0.00010466,2]
[346867801,1735335036427,-937.19,0.00010466,2]
[346867802,1735335036437,-500.0,0.00010466,2]
[346867803,1735335036447,-618.60031528,0.00010466,2]
[346867804,1735335036458,-500.0,0.00010466,2]
[346867805,1735335036467,-931.36,0.00010466,2]
[346867806,1735335036477,-617.33694343,0.00010466,2]
[346867807,1735335036487,-500.0,0.00010466,2]
[346867808,1735335036497,-500.0,0.00010466,2]
[346867809,1735335036506,-1538.24,0.00010466,2]
[346867810,1735335036516,-500.0,0.00010466,2]
[346867811,1735335036525,-500.0,0.00010466,2]
[346867812,1735335036536,-500.0,0.00010466,2]
[346867813,1735335036545,-1469.06,0.00010466,2]
[346867814,1735335036555,-824.84,0.00010466,2]
[346867815,1735335036564,-500.0,0.00010466,2]
[346867816,1735335036574,-500.0,0.00010466,2]
[346867817,1735335036584,-500.0,0.00010466,2]
[346867818,1735335036593,-500.0,0.00010466,2]
[346867819,1735335036602,-1751.52,0.00010466,2]
[346867820,1735335036612,-500.0,0.00010466,2]
[346867821,1735335036623,-1293.19,0.00010466,2]
[346867822,1735335036632,-500.0,0.00010466,2]
[346867823,1735335036643,-859.74,0.00010466,2]
[346867824,1735335036652,-534.74,0.00010466,2]
[346867825,1735335036662,-500.0,0.00010466,2]
[346867826,1735335036671,-500.0,0.00010466,2]
[346867827,1735335036680,-500.0,0.00010466,2]
[346867828,1735335036689,-500.0,0.00010466,2]
[346867829,1735335036699,-500.0,0.00010466,2]
[346867830,1735335036708,-1674.66,0.00010466,2]
[346867831,1735335036718,-778.74,0.00010466,2]
[346867832,1735335036727,-738.28,0.00010466,2]
[346867833,1735335036736,-1063.24,0.00010466,2]
[346867834,1735335036747,-524.14,0.00010466,2]
[346867835,1735335036760,-1262.47,0.00010466,2]
[346867836,1735335036769,-500.0,0.00010466,2]
[346867837,1735335036779,-705.18,0.00010466,2]
[346867838,1735335036789,-2150.6,0.00010466,2]
[346867839,1735335036799,-877.5,0.00010466,2]
[346867840,1735335036809,-1260.5,0.00010466,2]
[346867841,1735335036819,-500.0,0.00010466,2]
[346867842,1735335036830,-256.83844156,0.00010466,2]
[346867843,1735335036840,-500.0,0.00010466,2]
[346867844,1735335036850,-766.5,0.00010466,2]
[346867845,1735335036859,-500.0,0.00010466,2]
[346867846,1735335036871,-230.34,0.00010466,2]
[346867847,1735335036881,-2157.38,0.00010466,2]
[346867848,1735335036890,-500.0,0.00010466,2]
[346867849,1735335036900,-694.85,0.00010466,2]
[346867850,1735335036910,-3983.24,0.00010466,2]
[346867851,1735335036919,-500.0,0.00010466,2]
[346867852,1735335036929,-1988.66,0.00010466,2]
[346867853,1735335036938,-1073.44,0.00010466,2]
[346867854,1735335036948,-3865.39,0.00010466,2]
[346867855,1735335036958,-978.5,0.00010466,2]
[346867856,1735335036967,-500.0,0.00010466,2]
[346867857,1735335036977,-2522.58,0.00010466,2]
[346867858,1735335036987,-5145.02,0.00010466,2]
[346867859,1735335036996,-694.46,0.00010466,2]
[346867860,1735335037006,-956.98,0.00010466,2]
[346867861,1735335037016,-502.62073221,0.00010466,2]
[346867862,1735335037026,-2125.99,0.00010466,2]
[346867863,1735335037036,-500.0,0.00010466,2]
[346867864,1735335037045,-610.3,0.00010466,2]
[346867865,1735335037055,-23971.09,0.00010466,2]
[346867866,1735335037065,-500.0,0.00010466,2]
[346867867,1735335037074,-500.0,0.00010466,2]
[346867868,1735335037084,-703.32,0.00010466,2]
[346867869,1735335037093,-951.17,0.00010466,2]
[346867870,1735335037103,-253.48,0.00010466,2]
[346867871,1735335037113,-3192.71,0.00010467,2]
[346867872,1735335037124,-1482.22,0.00010467,2]
[346867873,1735335037133,-2567.31,0.00010467,2]
[346867874,1735335037143,-500.0,0.00010467,2]
[346867875,1735335037152,-1479.1,0.00010467,2]
[346867876,1735335037162,-18339.07,0.00010467,2]
[346867877,1735335037171,-708.0,0.00010467,2]
[346867878,1735335037181,-3062.7,0.00010467,2]
[346867879,1735335037191,-1224.86,0.00010467,2]
[346867880,1735335037202,-1953.1,0.00010467,2]
[346867881,1735335037212,-1790.92,0.00010467,2]
[346867882,1735335037222,-4598.53,0.00010467,2]
[346867883,1735335037232,-1752.23,0.00010467,2]
[346867884,1735335037242,-612.94,0.00010467,2]
[346867885,1735335037253,-3744.61,0.00010467,2]
[346867886,1735335037263,-1278.34,0.00010467,2]
[346867887,1735335037273,-1441.16,0.00010467,2]
[346867888,1735335037284,-1953.04,0.00010467,2]
[346867889,1735335037293,-1042.41,0.00010467,2]
[346867890,1735335037303,-3658.72,0.00010467,2]
[346867891,1735335037312,-8266.31,0.00010467,2]
[346867892,1735335037321,-2451.38,0.00010467,2]
[346867893,1735335037331,-1929.84,0.00010467,2]
[346867894,1735335037341,-3794.97,0.00010467,2]
[346867895,1735335037350,-1149.43,0.00010467,2]
[346867896,1735335037360,-1887.75,0.00010467,2]
[346867897,1735335037371,-630.69,0.00010467,2]
[346867898,1735335037380,-2938.63,0.00010467,2]
[346867899,1735335037390,-5319.03,0.00010467,2]
[346867900,1735335037400,-1635.79,0.00010467,2]
[346867901,1735335037409,-2809.57,0.00010467,2]
[346867902,1735335037419,-643.22,0.00010467,2]
[346867903,1735335037429,-1612.81,0.00010468,2]
[346867904,1735335037439,-3062.7,0.00010468,2]
[346867905,1735335037448,-3672.37,0.00010468,2]
[346867906,1735335037458,-500.0,0.00010468,2]
[346867907,1735335037468,-500.0,0.00010469,2]
[346867908,1735335037478,-2882.05297669,0.00010475,2]
[346867909,1735335037488,-184.24088894,0.00010643,2]
[346867910,1735335037498,-500.0,0.000107,3]
[346867911,1735335037507,-420.0,0.00010702,2]
[346867912,1735335037517,-470.65,0.0001073,2]
[346867913,1735335037527,-350.12013744,0.00010738,2]
[346867914,1735335037536,-283.10027114,0.00010738,2]
[346867915,1735335037545,-500.0,0.00010738,2]
[346867916,1735335037555,-332.80627907,0.00010738,2]
[346867917,1735335037564,-171.52046452,0.00010738,2]
[346867918,1735335037573,-500.0,0.00010738,2]
[346867919,1735335037583,-368.28070869,0.00010738,2]
[346867920,1735335037592,-500.0,0.00010738,2]
[346867921,1735335037601,-500.0,0.00010738,2]
[346867922,1735335037611,-500.0,0.00010738,2]
[346867923,1735335037621,-500.0,0.00010738,2]
[346867924,1735335037631,-500.0,0.00010738,2]
[346867925,1735335037640,-500.0,0.00010738,2]
[346867926,1735335037650,-500.0,0.00010738,2]
[346867927,1735335037659,-500.0,0.00010738,2]
[346867928,1735335037669,-500.0,0.00010738,2]
[346867929,1735335037679,-842.28,0.00010738,2]
[346867930,1735335037688,-500.0,0.00010738,2]
[346867931,1735335037697,-500.0,0.00010738,2]
[346867932,1735335037707,-654.58,0.00010738,2]
[346867933,1735335037717,-500.0,0.00010738,2]
[346867934,1735335037727,-500.0,0.00010739,2]
[346867935,1735335037737,-500.0,0.00010739,2]
[346867936,1735335037747,-500.0,0.00010739,2]
[346867937,1735335037761,-500.0,0.00010739,2]
[346867938,1735335037771,-500.0,0.00010739,2]
[346867939,1735335037781,-500.0,0.00010739,2]
[346867940,1735335037791,-500.0,0.00010739,2]
[346867941,1735335037800,-500.0,0.00010739,2]
[346867942,1735335037810,-500.0,0.00010739,2]
[346867943,1735335037820,-500.0,0.00010739,2]
[346867944,1735335037830,-500.0,0.00010739,2]
[346867945,1735335037839,-500.0,0.00010739,2]
[346867946,1735335037849,-500.0,0.00010739,2]
[346867947,1735335037858,-500.0,0.00010739,2]
[346867948,1735335037872,-500.0,0.00010739,2]
[346867949,1735335037882,-500.0,0.00010739,2]
[346867950,1735335037891,-500.0,0.00010739,2]
[346867951,1735335037900,-346.25622743,0.00010739,2]
[346867952,1735335037909,-500.0,0.00010739,2]
[346867953,1735335037918,-500.0,0.00010739,2]
[346867954,1735335037927,-500.0,0.00010739,2]
[346867955,1735335037937,-500.0,0.00010739,2]
[346867956,1735335037946,-500.0,0.00010739,2]
[346867957,1735335037956,-500.0,0.00010739,2]
[346867958,1735335037965,-521.15485488,0.00010739,2]
[346867959,1735335037975,-500.0,0.00010739,2]
[346867960,1735335037985,-500.0,0.00010739,2]
[346867961,1735335037995,-500.0,0.00010739,2]
[346867962,1735335038005,-500.0,0.00010739,2]
[346867963,1735335038015,-500.0,0.00010739,2]
[346867964,1735335038025,-500.0,0.00010739,2]
[346867965,1735335038035,-500.0,0.00010739,2]
[346867966,1735335038044,-158.68377951,0.00010739,2]
[346867967,1735335038054,-500.0,0.00010739,2]
[346867968,1735335038064,-546.94,0.00010739,2]
[346867969,1735335038073,-500.0,0.00010739,2]
[346867970,1735335038083,-500.0,0.00010739,2]
[346867971,1735335038092,-500.0,0.00010739,2]
[346867972,1735335038102,-500.0,0.00010739,2]
[346867973,1735335038112,-500.0,0.00010739,2]
[346867974,1735335038125,-500.0,0.00010739,2]
[346867975,1735335038135,-500.0,0.00010739,2]
[346867977,1735335038144,-500.0,0.00010739,2]